fUSD/lending_fUSD_20260517
["ID","MTS","AMOUNT","RATE_DAILY","PERIOD"]
[422517108,1779018651000,-1000.0,0.00039999,50]
[422517134,1779018651000,-2500.0,0.000401,120]
[422517118,1779018651000,-151.15,0.0004,120]
[422517132,1779018651000,-160.92141633,0.00040055,30]
[422517133,1779018651000,-2557.44843548,0.00040055,12]
[422517129,1779018651000,-2313.0,0.0004004,11]
[422517130,1779018651000,-2313.0,0.0004004,11]
[422517127,1779018651000,-2313.0,0.00040037,11]
[422517138,1779018651000,-5162.98681034,0.00040122,15]
[422517125,1779018651000,-278.0,0.0004,120]
[422517124,1779018651000,-466.99,0.0004,30]
[422517123,1779018651000,-1404.92,0.0004,14]
[422517122,1779018651000,-215.0785988,0.0004,7]
[422517128,1779018651000,-163.0,0.0004004,11]
[422517200,1779018652000,-152.0,0.00040407,120]
[422517204,1779018652000,-500.0,0.00040428,120]
[422517207,1779018652000,-500.0,0.00040428,120]
[422517203,1779018652000,-255.62422958,0.00040428,120]
[422517202,1779018652000,-1000.0,0.00040428,6]
[422517196,1779018652000,-823.2,0.00040407,30]
[422517201,1779018652000,-1000.0,0.00040409,9]
[422517198,1779018652000,-154.0,0.00040407,120]
[422517209,1779018652000,-500.0,0.00040428,120]
[422517194,1779018652000,-220.0,0.00040407,3]
[422517223,1779018652000,-500.0,0.00040428,120]
[422517199,1779018652000,-161.0,0.00040407,120]
[422517205,1779018652000,-500.0,0.00040428,120]
[422517221,1779018652000,-500.0,0.00040428,120]
[422517206,1779018652000,-500.0,0.00040428,120]
[422517211,1779018652000,-500.0,0.00040428,120]
[422517210,1779018652000,-500.0,0.00040428,120]
[422517212,1779018652000,-500.0,0.00040428,120]
[422517214,1779018652000,-500.0,0.00040428,120]
[422517218,1779018652000,-500.0,0.00040428,120]
[422517216,1779018652000,-500.0,0.00040428,120]
[422517215,1779018652000,-500.0,0.00040428,120]
[422517220,1779018652000,-500.0,0.00040428,120]
[422517217,1779018652000,-500.0,0.00040428,120]
[422517219,1779018652000,-500.0,0.00040428,120]
[422517213,1779018652000,-500.0,0.00040428,120]
[422517208,1779018652000,-500.0,0.00040428,120]
[422517197,1779018652000,-500.0,0.00040407,120]
[422517167,1779018652000,-154.54813898,0.00040291,30]
[422517195,1779018652000,-958.33,0.00040407,120]
[422517169,1779018652000,-344218.98,0.00040329,9]
[422517168,1779018652000,-379.57,0.000403,30]
[422517166,1779018652000,-1993.8,0.0004029,60]
[422517171,1779018652000,-28044.31,0.00040329,9]
[422517170,1779018652000,-11589.41,0.00040329,9]
[422517175,1779018652000,-320.00123914,0.00040344,120]
[422517173,1779018652000,-4040.4716116,0.00040332,14]
[422517174,1779018652000,-5800.0,0.00040343,14]
[422517172,1779018652000,-403465.53,0.00040329,9]
[422517177,1779018652000,-2313.0,0.00040357,11]
[422517176,1779018652000,-2313.0,0.00040355,11]
[422517179,1779018652000,-163.0,0.00040359,11]
[422517193,1779018652000,-500.0,0.00040407,3]
[422517178,1779018652000,-227.17648044,0.00040358,2]
[422517180,1779018652000,-1277.0,0.0004036,11]
[422517183,1779018652000,-160.92141633,0.00040384,30]
[422517181,1779018652000,-287.677894,0.00040367,51]
[422517186,1779018652000,-14292.6433,0.000404,30]
[422517182,1779018652000,-1000.0,0.0004037,90]
[422517184,1779018652000,-163.0,0.00040398,11]
[422517187,1779018652000,-1500.0,0.000404,33]
[422517190,1779018652000,-823.2,0.00040406,30]
[422517189,1779018652000,-958.33,0.00040406,120]
[422517192,1779018652000,-352.63685002,0.00040406,2]
[422517191,1779018652000,-500.0,0.00040406,120]
[422517188,1779018652000,-154.90923201,0.000404,120]
[422517185,1779018652000,-1000.0,0.00040399,33]
[422517233,1779018652000,-500.0,0.00040428,120]
[422517244,1779018652000,-159.10976002,0.00040429,120]
[422517224,1779018652000,-500.0,0.00040428,120]
[422517259,1779018652000,-500.0,0.00040429,120]
[422517262,1779018652000,-500.0,0.00040429,120]
[422517268,1779018652000,-100000.0,0.00040429,30]
[422517267,1779018652000,-233.27153218,0.00040429,60]
[422517266,1779018652000,-382.86477196,0.00040429,120]
[422517249,1779018652000,-159.10976002,0.00040429,120]
[422517261,1779018652000,-500.0,0.00040429,120]
[422517263,1779018652000,-500.0,0.00040429,120]
[422517265,1779018652000,-500.0,0.00040429,120]
[422517256,1779018652000,-500.0,0.00040429,120]
[422517258,1779018652000,-500.0,0.00040429,120]
[422517264,1779018652000,-500.0,0.00040429,120]
[422517269,1779018652000,-159.10976001,0.00040429,120]
[422517271,1779018652000,-500.0,0.00040429,120]
[422517274,1779018652000,-500.0,0.00040429,120]
[422517275,1779018652000,-500.0,0.00040429,120]
[422517277,1779018652000,-500.0,0.00040429,120]
[422517272,1779018652000,-500.0,0.00040429,120]
[422517273,1779018652000,-500.0,0.00040429,120]
[422517281,1779018652000,-771.93,0.00040429,120]
[422517279,1779018652000,-236.6981167,0.00040429,60]
[422517276,1779018652000,-500.0,0.00040429,120]
[422517278,1779018652000,-586.91560267,0.00040429,120]
[422517280,1779018652000,-163.75200715,0.00040429,30]
[422517283,1779018652000,-771.93,0.00040429,120]
[422517222,1779018652000,-500.0,0.00040428,120]
[422517270,1779018652000,-1279.72,0.00040429,120]
[422517254,1779018652000,-500.0,0.00040429,120]
[422517282,1779018652000,-771.93,0.00040429,120]
[422517252,1779018652000,-206.2,0.00040429,120]
[422517246,1779018652000,-159.10976002,0.00040429,120]
[422517225,1779018652000,-500.0,0.00040428,120]
[422517226,1779018652000,-500.0,0.00040428,120]
[422517228,1779018652000,-500.0,0.00040428,120]
[422517231,1779018652000,-500.0,0.00040428,120]
[422517227,1779018652000,-500.0,0.00040428,120]
[422517229,1779018652000,-500.0,0.00040428,120]
[422517230,1779018652000,-500.0,0.00040428,120]
[422517234,1779018652000,-500.0,0.00040428,120]
[422517237,1779018652000,-482.01,0.00040429,90]
[422517236,1779018652000,-480.0,0.00040429,3]
[422517235,1779018652000,-311.01584347,0.00040428,120]
[422517238,1779018652000,-168.068147,0.00040429,20]
[422517232,1779018652000,-500.0,0.00040428,120]
[422517241,1779018652000,-181.34053925,0.00040429,120]
[422517242,1779018652000,-159.10976002,0.00040429,120]
[422517257,1779018652000,-500.0,0.00040429,120]
[422517255,1779018652000,-500.0,0.00040429,120]
[422517251,1779018652000,-500.0,0.00040429,120]
[422517250,1779018652000,-184.77436896,0.00040429,120]
[422517260,1779018652000,-500.0,0.00040429,120]
[422517247,1779018652000,-159.10976002,0.00040429,120]
[422517240,1779018652000,-227.30358758,0.00040429,30]
[422517253,1779018652000,-500.0,0.00040429,120]
[422517243,1779018652000,-163.05696925,0.00040429,120]
[422517248,1779018652000,-159.10976002,0.00040429,120]
[422517239,1779018652000,-151.0,0.00040429,30]
[422517245,1779018652000,-159.10976002,0.00040429,120]
[422517322,1779018653000,-543.46,0.00040429,120]
[422517313,1779018653000,-543.46,0.00040429,120]
[422517312,1779018653000,-543.46,0.00040429,120]
[422517308,1779018653000,-543.46,0.00040429,120]
[422517311,1779018653000,-543.46,0.00040429,120]
[422517316,1779018653000,-543.46,0.00040429,120]
[422517315,1779018653000,-543.46,0.00040429,120]
[422517318,1779018653000,-543.46,0.00040429,120]
[422517327,1779018653000,-543.46,0.00040429,120]
[422517309,1779018653000,-543.46,0.00040429,120]
[422517310,1779018653000,-543.46,0.00040429,120]
[422517323,1779018653000,-543.46,0.00040429,120]
[422517320,1779018653000,-543.46,0.00040429,120]
[422517319,1779018653000,-543.46,0.00040429,120]
[422517324,1779018653000,-543.46,0.00040429,120]
[422517325,1779018653000,-543.46,0.00040429,120]
[422517326,1779018653000,-543.46,0.00040429,120]
[422517328,1779018653000,-543.46,0.00040429,120]
[422517329,1779018653000,-543.49888003,0.00040429,120]
[422517334,1779018653000,-303.659999,0.00040429,2]
[422517317,1779018653000,-543.46,0.00040429,120]
[422517331,1779018653000,-303.659999,0.00040429,2]
[422517321,1779018653000,-543.46,0.00040429,120]
[422517314,1779018653000,-543.46,0.00040429,120]
[422517295,1779018653000,-771.93,0.00040429,120]
[422517307,1779018653000,-543.46,0.00040429,120]
[422517330,1779018653000,-303.659999,0.00040429,2]
[422517285,1779018653000,-771.93,0.00040429,120]
[422517292,1779018653000,-771.93,0.00040429,120]
[422517284,1779018653000,-771.93,0.00040429,120]
[422517288,1779018653000,-771.93,0.00040429,120]
[422517287,1779018653000,-771.93,0.00040429,120]
[422517286,1779018653000,-771.93,0.00040429,120]
[422517289,1779018653000,-771.93,0.00040429,120]
[422517293,1779018653000,-771.93,0.00040429,120]
[422517291,1779018653000,-771.93,0.00040429,120]
[422517306,1779018653000,-543.46,0.00040429,120]
[422517290,1779018653000,-771.93,0.00040429,120]
[422517296,1779018653000,-771.93,0.00040429,120]
[422517298,1779018653000,-771.93,0.00040429,120]
[422517297,1779018653000,-771.93,0.00040429,120]
[422517302,1779018653000,-771.93,0.00040429,120]
[422517303,1779018653000,-771.93,0.00040429,120]
[422517299,1779018653000,-771.93,0.00040429,120]
[422517301,1779018653000,-771.93,0.00040429,120]
[422517300,1779018653000,-771.93,0.00040429,120]
[422517305,1779018653000,-100000.0,0.00040429,30]
[422517304,1779018653000,-772.06216121,0.00040429,120]
[422517294,1779018653000,-771.93,0.00040429,120]
[422517338,1779018653000,-303.659999,0.00040429,2]
[422517332,1779018653000,-303.659999,0.00040429,2]
[422517335,1779018653000,-303.659999,0.00040429,2]
[422517363,1779018653000,-526.69,0.00040429,120]
[422517364,1779018653000,-526.69,0.00040429,120]
[422517374,1779018653000,-534.0512539,0.00040429,5]
[422517372,1779018653000,-526.85591666,0.00040429,120]
[422517371,1779018653000,-526.69,0.00040429,120]
[422517369,1779018653000,-526.69,0.00040429,120]
[422517366,1779018653000,-526.69,0.00040429,120]
[422517370,1779018653000,-526.69,0.00040429,120]
[422517373,1779018653000,-100000.0,0.00040429,30]
[422517368,1779018653000,-526.69,0.00040429,120]
[422517367,1779018653000,-526.69,0.00040429,120]
[422517376,1779018653000,-1893.272026,0.00040429,2]
[422517375,1779018653000,-454626.55680358,0.00040429,60]
[422517377,1779018653000,-500.0,0.00040429,120]
[422517378,1779018653000,-227.32395125,0.00040429,120]
[422517379,1779018653000,-273.51692486,0.00040429,60]
[422517380,1779018653000,-273.51692486,0.00040429,60]
[422517385,1779018653000,-418.0,0.00040429,120]
[422517382,1779018653000,-661.0,0.00040429,120]
[422517381,1779018653000,-510.0,0.00040429,120]
[422517383,1779018653000,-156.0,0.00040429,120]
[422517336,1779018653000,-303.659999,0.00040429,2]
[422517384,1779018653000,-153.0,0.00040429,120]
[422517365,1779018653000,-526.69,0.00040429,120]
[422517359,1779018653000,-526.69,0.00040429,120]
[422517386,1779018653000,-151.0,0.00040429,120]
[422517356,1779018653000,-526.69,0.00040429,120]
[422517337,1779018653000,-303.659999,0.00040429,2]
[422517358,1779018653000,-526.69,0.00040429,120]
[422517333,1779018653000,-303.659999,0.00040429,2]
[422517340,1779018653000,-500.0,0.00040429,120]
[422517339,1779018653000,-2833.875895,0.00040429,2]
[422517343,1779018653000,-500.0,0.00040429,120]
[422517345,1779018653000,-500.0,0.00040429,120]
[422517344,1779018653000,-500.0,0.00040429,120]
[422517341,1779018653000,-500.0,0.00040429,120]
[422517346,1779018653000,-500.0,0.00040429,120]
[422517348,1779018653000,-151.0,0.00040429,2]
[422517342,1779018653000,-500.0,0.00040429,120]
[422517362,1779018653000,-526.69,0.00040429,120]
[422517347,1779018653000,-499.2,0.00040429,120]
[422517350,1779018653000,-526.69,0.00040429,120]
[422517354,1779018653000,-526.69,0.00040429,120]
[422517361,1779018653000,-526.69,0.00040429,120]
[422517351,1779018653000,-526.69,0.00040429,120]
[422517357,1779018653000,-526.69,0.00040429,120]
[422517360,1779018653000,-526.69,0.00040429,120]
[422517352,1779018653000,-526.69,0.00040429,120]
[422517353,1779018653000,-526.69,0.00040429,120]
[422517355,1779018653000,-526.69,0.00040429,120]
[422517349,1779018653000,-526.69,0.00040429,120]
[422517438,1779018654000,-151.0,0.00040593,14]
[422517413,1779018654000,-408.97,0.00040488,120]
[422517430,1779018654000,-170.8630471,0.00040518,120]
[422517436,1779018654000,-1000.0,0.00040567,90]
[422517431,1779018654000,-9353.44893307,0.00040529,15]
[422517426,1779018654000,-150.0,0.00040488,2]
[422517421,1779018654000,-408.97,0.00040488,120]
[422517423,1779018654000,-408.97,0.00040488,120]
[422517420,1779018654000,-408.97,0.00040488,120]
[422517422,1779018654000,-408.97,0.00040488,120]
[422517418,1779018654000,-408.97,0.00040488,120]
[422517433,1779018654000,-160.92141633,0.00040548,30]
[422517428,1779018654000,-500.0,0.000405,14]
[422517429,1779018654000,-170.86304711,0.00040518,120]
[422517448,1779018654000,-19993.20167828,0.00040629,120]
[422517432,1779018654000,-1000.0,0.00040547,5]
[422517446,1779018654000,-1000.0,0.00040623,79]
[422517435,1779018654000,-1000.0,0.00040555,90]
[422517437,1779018654000,-2313.0,0.00040572,11]
[422517434,1779018654000,-161.4928877,0.00040548,2]
[422517440,1779018654000,-10000.0,0.000406,30]
[422517450,1779018654000,-19993.20167823,0.00040629,120]
[422517441,1779018654000,-500.0,0.000406,14]
[422517449,1779018654000,-19993.20167823,0.00040629,120]
[422517445,1779018654000,-500.0,0.00040607,120]
[422517447,1779018654000,-151.0,0.00040623,14]
[422517439,1779018654000,-1000.0,0.00040599,31]
[422517417,1779018654000,-408.97,0.00040488,120]
[422517427,1779018654000,-150.0,0.00040488,2]
[422517419,1779018654000,-408.97,0.00040488,120]
[422517391,1779018654000,-1000.0,0.00040473,39]
[422517415,1779018654000,-408.97,0.00040488,120]
[422517443,1779018654000,-958.33,0.00040607,120]
[422517388,1779018654000,-1000.0,0.00040434,90]
[422517389,1779018654000,-1000.0,0.00040473,4]
[422517390,1779018654000,-1000.0,0.00040473,10]
[422517399,1779018654000,-309.77765035,0.00040474,120]
[422517398,1779018654000,-2805.00325221,0.00040474,2]
[422517387,1779018654000,-152.0,0.00040429,120]
[422517394,1779018654000,-1000.0,0.00040473,49]
[422517395,1779018654000,-2798.68773875,0.00040474,2]
[422517392,1779018654000,-1000.0,0.00040473,40]
[422517397,1779018654000,-5865.75645904,0.00040474,2]
[422517393,1779018654000,-1000.0,0.00040473,91]
[422517401,1779018654000,-150.0,0.00040488,6]
[422517416,1779018654000,-408.97,0.00040488,120]
[422517400,1779018654000,-320.57411475,0.00040474,120]
[422517402,1779018654000,-151.0,0.00040488,120]
[422517412,1779018654000,-408.97,0.00040488,120]
[422517404,1779018654000,-263.8,0.00040488,2]
[422517411,1779018654000,-408.97,0.00040488,120]
[422517408,1779018654000,-5148.93267477,0.00040488,2]
[422517407,1779018654000,-2000.0,0.00040488,120]
[422517410,1779018654000,-408.94,0.00040488,120]
[422517409,1779018654000,-5909.11924427,0.00040488,2]
[422517405,1779018654000,-495.69948996,0.00040488,120]
[422517406,1779018654000,-1830.62971474,0.00040488,120]
[422517424,1779018654000,-408.97,0.00040488,120]
[422517414,1779018654000,-408.97,0.00040488,120]
[422517425,1779018654000,-408.97,0.00040488,120]
[422517403,1779018654000,-387.0,0.00040488,120]
[422517444,1779018654000,-823.2,0.00040607,30]
[422517396,1779018654000,-166.22900262,0.00040474,2]
[422517463,1779018654000,-1000.0,0.00040699,12]
[422517480,1779018654000,-1000.0,0.00040831,90]
[422517482,1779018654000,-1000.0,0.00040874,90]
[422517486,1779018654000,-311.37681882,0.00040889,2]
[422517485,1779018654000,-1000.0,0.00040887,90]
[422517500,1779018654000,-469.23882206,0.000409,2]
[422517490,1779018654000,-1269.96407723,0.000409,2]
[422517489,1779018654000,-211.527864,0.000409,53]
[422517491,1779018654000,-515.33678161,0.000409,15]
[422517492,1779018654000,-245.7,0.000409,36]
[422517493,1779018654000,-194.168,0.000409,43]
[422517496,1779018654000,-2532.37722821,0.000409,28]
[422517494,1779018654000,-691.0,0.000409,14]
[422517495,1779018654000,-194.168,0.000409,43]
[422517488,1779018654000,-1000.0,0.00040899,43]
[422517497,1779018654000,-2094.90525371,0.000409,2]
[422517498,1779018654000,-200.0,0.000409,20]
[422517501,1779018654000,-1735.5,0.000409,120]
[422517505,1779018654000,-1000.0,0.00040966,90]
[422517509,1779018654000,-400.0,0.0004097,3]
[422517510,1779018654000,-400.0,0.0004097,3]
[422517512,1779018654000,-1000.0,0.00040974,2]
[422517504,1779018654000,-2107.96,0.0004092,2]
[422517508,1779018654000,-400.0,0.0004097,3]
[422517506,1779018654000,-1000.0,0.00040969,3]
[422517503,1779018654000,-1000.0,0.00040906,90]
[422517502,1779018654000,-1000.0,0.00040901,11]
[422517511,1779018654000,-157.626065,0.0004097,30]
[422517442,1779018654000,-165.0,0.00040606,11]
[422517499,1779018654000,-17042.87754972,0.000409,2]
[422517484,1779018654000,-311.37681882,0.00040883,2]
[422517507,1779018654000,-400.0,0.0004097,3]
[422517478,1779018654000,-150.63,0.000408,30]
[422517455,1779018654000,-19993.20167823,0.00040629,120]
[422517487,1779018654000,-1000.0,0.00040899,20]
[422517453,1779018654000,-19993.20167823,0.00040629,120]
[422517462,1779018654000,-1586.0,0.0004068,11]
[422517451,1779018654000,-19993.20167823,0.00040629,120]
[422517457,1779018654000,-19993.20167823,0.00040629,120]
[422517460,1779018654000,-6784.29,0.00040639,2]
[422517456,1779018654000,-19993.20167823,0.00040629,120]
[422517458,1779018654000,-22108.1970101,0.00040635,2]
[422517454,1779018654000,-19993.20167823,0.00040629,120]
[422517452,1779018654000,-19993.20167823,0.00040629,120]
[422517459,1779018654000,-1000.0,0.00040639,90]
[422517465,1779018654000,-153.0,0.000407,120]
[422517468,1779018654000,-1000.0,0.00040703,90]
[422517461,1779018654000,-819.0,0.00040679,11]
[422517473,1779018654000,-501.0,0.0004071,16]
[422517483,1779018654000,-44390.0,0.00040876,120]
[422517466,1779018654000,-224.8179837,0.000407,30]
[422517481,1779018654000,-160.92141633,0.00040849,30]
[422517477,1779018654000,-1000.0,0.00040799,14]
[422517476,1779018654000,-1000.0,0.00040732,90]
[422517474,1779018654000,-160.92141633,0.00040712,30]
[422517479,1779018654000,-500.0,0.000408,14]
[422517469,1779018654000,-958.33,0.00040708,120]
[422517464,1779018654000,-10000.0,0.000407,30]
[422517470,1779018654000,-823.2,0.00040708,30]
[422517467,1779018654000,-500.0,0.000407,14]
[422517471,1779018654000,-500.0,0.00040708,120]
[422517475,1779018654000,-1000.0,0.00040725,60]
[422517472,1779018654000,-45241.0,0.00040709,120]
[422517551,1779018655000,-2405.55389864,0.00040998,30]
[422517552,1779018655000,-2494.55939289,0.00040998,30]
[422517547,1779018655000,-2080.17592889,0.00040998,30]
[422517550,1779018655000,-2319.72410669,0.00040998,30]
[422517548,1779018655000,-2157.14243826,0.00040998,30]
[422517546,1779018655000,-2005.9555727,0.00040998,30]
[422517545,1779018655000,-1934.38338737,0.00040998,30]
[422517557,1779018655000,-823.2,0.00040998,30]
[422517542,1779018655000,-1734.62772924,0.00040998,30]
[422517549,1779018655000,-2236.95670848,0.00040998,30]
[422517541,1779018655000,-1672.7364795,0.00040998,30]
[422517559,1779018655000,-151.0,0.00040998,30]
[422517556,1779018655000,-823.2,0.00040998,30]
[422517555,1779018655000,-823.2,0.00040998,30]
[422517561,1779018655000,-500.0,0.00040998,120]
[422517554,1779018655000,-823.2,0.00040998,30]
[422517558,1779018655000,-823.2341162,0.00040998,30]
[422517564,1779018655000,-423.78478038,0.00040998,120]
[422517560,1779018655000,-500.0,0.00040998,120]
[422517563,1779018655000,-500.0,0.00040998,120]
[422517562,1779018655000,-500.0,0.00040998,120]
[422517565,1779018655000,-1000.0,0.00040998,30]
[422517576,1779018655000,-900.0,0.00040999,15]
[422517543,1779018655000,-1798.80895522,0.00040998,30]
[422517570,1779018655000,-300.0,0.00040999,10]
[422517553,1779018655000,-2177.57835665,0.00040998,30]
[422517544,1779018655000,-1865.36488657,0.00040998,30]
[422517524,1779018655000,-150.0,0.00040986,7]
[422517539,1779018655000,-1555.5,0.00040998,30]
[422517569,1779018655000,-500.8620181,0.00040999,30]
[422517514,1779018655000,-3316.11994332,0.00040975,2]
[422517513,1779018655000,-150.0,0.00040975,2]
[422517516,1779018655000,-17342.44378636,0.00040975,2]
[422517526,1779018655000,-330.0,0.00040986,87]
[422517518,1779018655000,-2294.9737345,0.00040975,2]
[422517515,1779018655000,-150.0,0.00040975,2]
[422517519,1779018655000,-1000.0,0.00040975,2]
[422517517,1779018655000,-150.0,0.00040975,2]
[422517523,1779018655000,-150.0,0.00040986,7]
[422517520,1779018655000,-313.846,0.00040986,120]
[422517522,1779018655000,-150.0,0.00040986,7]
[422517521,1779018655000,-150.0,0.00040986,7]
[422517525,1779018655000,-150.0,0.00040986,7]
[422517527,1779018655000,-150.0,0.00040986,30]
[422517529,1779018655000,-500.91667493,0.0004099,7]
[422517532,1779018655000,-151.0,0.00040997,14]
[422517528,1779018655000,-1000.0,0.00040989,7]
[422517531,1779018655000,-246.78,0.00040993,87]
[422517534,1779018655000,-958.33,0.00040998,120]
[422517535,1779018655000,-958.33,0.00040998,120]
[422517533,1779018655000,-958.33,0.00040998,120]
[422517537,1779018655000,-958.41,0.00040998,120]
[422517538,1779018655000,-1500.0,0.00040998,30]
[422517536,1779018655000,-958.33,0.00040998,120]
[422517540,1779018655000,-1613.0535,0.00040998,30]
[422517567,1779018655000,-1000.0,0.00040998,90]
[422517530,1779018655000,-500.61556267,0.0004099,7]
[422517568,1779018655000,-300.0,0.00040999,10]
[422517600,1779018655000,-500.0,0.00040999,120]
[422517598,1779018655000,-200.0,0.00040999,120]
[422517602,1779018655000,-156.587,0.00040999,120]
[422517599,1779018655000,-2625.15855112,0.00040999,120]
[422517607,1779018655000,-1107.63007,0.00040999,120]
[422517617,1779018655000,-557.5788265,0.00040999,120]
[422517606,1779018655000,-559.19188,0.00040999,120]
[422517609,1779018655000,-151.0,0.00040999,120]
[422517610,1779018655000,-537.6845,0.00040999,120]
[422517611,1779018655000,-500.0,0.00040999,120]
[422517608,1779018655000,-162.380719,0.00040999,120]
[422517615,1779018655000,-168.3888056,0.00040999,120]
[422517601,1779018655000,-1068.11,0.00040999,120]
[422517614,1779018655000,-1148.61238259,0.00040999,120]
[422517616,1779018655000,-151.0,0.00040999,120]
[422517613,1779018655000,-200.0,0.00040999,120]
[422517618,1779018655000,-500.0,0.00040999,120]
[422517620,1779018655000,-601.3376128,0.00040999,120]
[422517566,1779018655000,-1000.0,0.00040998,15]
[422517624,1779018655000,-578.20924308,0.00040999,120]
[422517627,1779018655000,-620.0,0.00040999,120]
[422517619,1779018655000,-205.94293675,0.00040999,120]
[422517621,1779018655000,-200.0,0.00040999,120]
[422517622,1779018655000,-1191.11104075,0.00040999,120]
[422517625,1779018655000,-151.0,0.00040999,120]
[422517626,1779018655000,-500.0,0.00040999,120]
[422517612,1779018655000,-579.88197956,0.00040999,120]
[422517595,1779018655000,-151.0,0.00040999,120]
[422517623,1779018655000,-174.61919141,0.00040999,120]
[422517594,1779018655000,-151.0,0.00040999,120]
[422517596,1779018655000,-500.0,0.00040999,120]
[422517577,1779018655000,-900.0,0.00040999,15]
[422517578,1779018655000,-900.0,0.00040999,15]
[422517573,1779018655000,-900.0,0.00040999,15]
[422517575,1779018655000,-900.0,0.00040999,15]
[422517572,1779018655000,-300.0,0.00040999,10]
[422517574,1779018655000,-900.0,0.00040999,15]
[422517590,1779018655000,-200.0,0.00040999,120]
[422517580,1779018655000,-900.0,0.00040999,15]
[422517591,1779018655000,-6888.0,0.00040999,120]
[422517579,1779018655000,-900.0,0.00040999,15]
[422517582,1779018655000,-800.0,0.00040999,15]
[422517583,1779018655000,-800.0,0.00040999,15]
[422517571,1779018655000,-7527.41158839,0.00040999,7]
[422517585,1779018655000,-800.0,0.00040999,15]
[422517597,1779018655000,-539.24,0.00040999,120]
[422517587,1779018655000,-800.0,0.00040999,15]
[422517592,1779018655000,-500.0,0.00040999,120]
[422517593,1779018655000,-1030.0,0.00040999,120]
[422517604,1779018655000,-518.5,0.00040999,120]
[422517605,1779018655000,-200.0,0.00040999,120]
[422517586,1779018655000,-800.0,0.00040999,15]
[422517581,1779018655000,-800.0,0.00040999,15]
[422517584,1779018655000,-800.0,0.00040999,15]
[422517589,1779018655000,-520.0,0.00040999,120]
[422517588,1779018655000,-800.0,0.00040999,15]
[422517603,1779018655000,-151.0,0.00040999,120]
[422517651,1779018656000,-151.0,0.00040999,120]
[422517659,1779018656000,-151.0,0.00040999,120]
[422517652,1779018656000,-716.97946142,0.00040999,120]
[422517654,1779018656000,-1377.42282659,0.00040999,120]
[422517653,1779018656000,-200.0,0.00040999,120]
[422517648,1779018656000,-200.0,0.00040999,120]
[422517650,1779018656000,-695.39793187,0.00040999,120]
[422517655,1779018656000,-646.65982734,0.00040999,120]
[422517660,1779018656000,-743.50770149,0.00040999,120]
[422517665,1779018656000,-151.0,0.00040999,120]
[422517664,1779018656000,-151.0,0.00040999,120]
[422517661,1779018656000,-200.0,0.00040999,120]
[422517667,1779018656000,-500.0,0.00040999,120]
[422517663,1779018656000,-242.15909246,0.00040999,120]
[422517666,1779018656000,-500.0,0.00040999,120]
[422517668,1779018656000,-151.0,0.00040999,120]
[422517662,1779018656000,-500.0,0.00040999,120]
[422517649,1779018656000,-194.72792766,0.00040999,120]
[422517658,1779018656000,-151.0,0.00040999,120]
[422517647,1779018656000,-1328.27659266,0.00040999,120]
[422517642,1779018656000,-666.72878,0.00040999,120]
[422517657,1779018656000,-201.93286099,0.00040999,120]
[422517628,1779018656000,-623.58710448,0.00040999,120]
[422517630,1779018656000,-1235.18214925,0.00040999,120]